bitfinex-derivatives/quotes_ETHF0:USTF0_20250205
["timestamp","ask_amount","ask_price","bid_price","bid_amount"]
[1738786115375,3.2078,2782.0,2781.8,0.00539986]
[1738786115777,0.5704,2781.9,2781.2,3.2078]
[1738786115967,3.8246729,2781.6,2781.3,0.53756177]
[1738786116174,0.5293,2781.5,2780.7,3.2078]
[1738786116476,0.5293,2781.5,2780.8,0.53764949]
[1738786116676,0.5293,2781.5,2780.9,0.53764949]
[1738786116874,0.5293,2781.5,2781.0,0.53764949]
[1738786117081,0.5293,2781.5,2780.7,3.2078]
[1738786117082,0.5293,2781.5,2781.1,0.53764949]
[1738786117375,0.5752,2781.2,2780.9,0.00539986]
[1738786117574,7.0324729,2781.0,2780.9,0.00539986]
[1738786117779,7.0324729,2781.0,2780.1,3.2078]
[1738786117982,3.8246729,2780.7,2780.1,3.2078]
[1738786118280,3.8246729,2780.4,2779.7,3.2078]
[1738786118469,7.0324729,2780.4,2779.7,3.2078]
[1738786118674,3.2078,2780.4,2779.7,3.2078]
[1738786118874,4.17316602,2780.5,2779.0,1.21735418]
[1738786118875,3.2078,2779.8,2779.0,3.2078]
[1738786119079,7.38096602,2780.1,2779.8,0.00539986]
[1738786119579,3.2078,2780.1,2779.8,0.00539986]
[1738786119980,0.56899986,2780.3,2779.8,0.00539986]
[1738786120486,0.00539986,2780.3,2779.9,3.2078]
[1738786120780,0.00539986,2780.3,2779.8,0.00539986]
[1738786123186,0.00539986,2780.3,2779.9,3.2078]
[1738786123482,4.17316602,2781.3,2780.2,3.2078]
[1738786123678,3.2078,2781.5,2780.5,3.2078]
[1738786123881,3.2078,2781.8,2780.8,3.2078]
[1738786124086,3.2078,2781.8,2781.1,3.2078]
[1738786124784,0.00539986,2781.7,2781.1,3.2078]
[1738786125684,0.00539986,2781.7,2780.8,3.2078]
[1738786126188,3.2078,2781.5,2780.8,3.2078]
[1738786126585,0.5383,2781.6,2780.8,3.2078]
[1738786126786,0.5383,2781.6,2781.1,3.2078]
[1738786126992,0.5383,2781.6,2780.8,3.2078]
[1738786127188,0.00539986,2781.7,2780.8,3.2078]
[1738786127397,0.00539986,2781.7,2781.1,3.2078]
[1738786127996,0.00539986,2781.7,2781.2,4.71762995]
[1738786128495,0.00539986,2781.7,2781.1,3.2078]
[1738786129094,0.00539986,2781.7,2781.0,0.5398]
[1738786130499,3.2078,2781.5,2780.8,3.2078]
[1738786131205,0.58879986,2781.7,2780.8,3.2078]
[1738786131695,0.00539986,2781.7,2780.8,3.2078]
[1738786131886,0.00539986,2781.7,2781.2,3.2078]
[1738786133493,0.00539986,2781.7,2780.9,3.2078]
[1738786135399,0.00539986,2781.7,2781.1,3.2078]
[1738786140395,3.82219503,2781.6,2781.1,3.2078]
[1738786140797,4.35759503,2781.6,2781.1,3.2078]
[1738786141201,0.00539986,2781.7,2781.1,3.2078]
[1738786141395,0.00539986,2781.7,2780.4,3.82219503]
[1738786141396,0.00539986,2781.7,2780.8,3.2078]
[1738786141698,3.82219503,2781.6,2780.8,3.2078]
[1738786142197,0.00539986,2781.7,2780.8,3.2078]
[1738786142706,3.82219503,2781.6,2780.8,3.2078]
[1738786142908,3.2078,2781.5,2780.8,3.2078]
[1738786143503,3.78296,2781.5,2780.8,3.2078]
[1738786143904,3.2078,2781.2,2780.8,3.2078]
[1738786144105,0.57531,2780.7,2780.2,0.5523]
[1738786144308,3.2078,2780.3,2779.8,0.00539986]
[1738786145401,3.82219503,2780.2,2779.8,0.00539986]
[1738786145812,3.21319986,2780.3,2779.8,0.00539986]
[1738786146413,3.82219503,2780.2,2779.8,0.00539986]
[1738786146706,0.00539986,2780.3,2779.9,7.93588403]
[1738786146901,0.00539986,2780.3,2780.2,3.2078]
[1738786147104,3.2078,2781.3,2780.2,3.2078]
[1738786147415,3.2078,2781.6,2780.8,3.2078]
[1738786148004,3.82219503,2781.4,2780.4,3.2078]
[1738786148307,1.708,2781.7,2780.4,3.2078]
[1738786148308,0.00356563,2781.2,2781.1,3.2078]
[1738786148501,3.2078,2781.9,2781.1,3.2078]
[1738786148806,3.2078,2781.9,2781.5,3.2078]
[1738786149603,3.2078,2781.9,2781.6,40.8]
[1738786149809,3.2078,2782.3,2781.6,40.8]
[1738786150198,3.2078,2782.3,2781.8,3.2078]
[1738786150400,0.529,2783.0,2781.8,7.02999503]
[1738786150599,0.529,2783.0,2782.1,3.2078]
[1738786152404,3.2078,2782.8,2782.1,3.2078]
[1738786152706,0.529,2783.0,2782.1,3.2078]
[1738786152898,3.2078,2782.8,2782.1,3.2078]
[1738786153304,0.529,2783.0,2782.1,3.2078]
[1738786154208,3.2078,2783.1,2782.2,4.65576191]
[1738786154407,3.2078,2783.1,2782.1,3.2078]
[1738786155511,3.2078,2782.7,2782.1,3.2078]
[1738786155811,3.2078,2782.7,2781.8,0.5621]
[1738786155812,7.37245207,2783.0,2781.8,3.7699]
[1738786156817,3.2078,2782.4,2781.8,3.7699]
[1738786157110,3.2078,2782.4,2781.8,3.2078]
[1738786157314,0.5674,2782.3,2781.8,3.2078]
[1738786157509,0.5674,2782.3,2781.4,0.00539986]
[1738786157510,3.2078,2782.0,2781.4,0.00539986]
[1738786157715,7.37245207,2781.5,2781.4,0.00539986]
[1738786157912,8.82445207,2781.5,2781.4,0.00539986]
[1738786158410,3.2078,2781.5,2781.4,0.00539986]
[1738786159309,12.37245207,2781.5,2780.2,3.2078]
[1738786159507,3.2078,2781.1,2780.2,3.2078]
[1738786160211,7.37245207,2781.5,2780.2,3.2078]
[1738786160515,0.00539986,2781.1,2780.6,0.00539986]
[1738786160711,3.21319986,2781.1,2780.6,0.00539986]
[1738786162111,3.2078,2780.8,2780.6,0.00539986]
[1738786162818,0.5714,2781.0,2780.6,0.00539986]
[1738786163218,3.2078,2780.8,2780.6,0.00539986]
[1738786163414,0.5753,2780.7,2780.6,0.00539986]
[1738786163609,3.2078,2780.8,2780.6,0.00539986]
[1738786164420,3.21319986,2781.1,2780.6,0.00539986]
[1738786166014,3.2078,2781.0,2780.6,0.00539986]
[1738786166316,3.2078,2780.7,2780.6,0.00539986]
[1738786169013,3.2078,2780.7,2779.9,0.5326]
[1738786169014,0.57538,2780.4,2779.8,0.5408]
[1738786169216,3.2078,2780.0,2779.3,3.2078]
[1738786169716,0.5524,2780.3,2779.1,1.1049]
[1738786169717,3.2078,2779.7,2779.1,1.1049]
[1738786170320,3.21319986,2779.7,2779.1,1.11029986]
[1738786171019,0.00539986,2779.7,2779.1,4.31809986]
[1738786171215,0.00539986,2779.7,2779.2,4.64550691]
[1738786171621,0.00539986,2779.7,2779.1,4.31809986]
[1738786172322,0.00539986,2779.7,2779.1,0.00539986]
[1738786172323,7.03465315,2779.6,2779.1,0.00539986]
[1738786172512,3.2078,2779.3,2779.1,0.00539986]
[1738786173516,0.00539986,2779.7,2779.1,8.21319986]
[1738786173712,3.2078,2779.9,2779.4,3.2078]
[1738786174321,3.2078,2779.9,2779.2,0.5712]
[1738786174821,3.2078,2779.6,2779.1,0.00539986]
[1738786175616,3.2078,2779.3,2779.1,0.00539986]
[1738786175922,0.56499986,2779.8,2779.1,0.00539986]
[1738786175923,3.2078,2779.7,2779.1,0.00539986]
[1738786177223,3.2078,2779.4,2779.1,0.00539986]
[1738786180019,3.2078,2779.7,2779.1,0.00539986]
[1738786180521,3.55999986,2779.8,2779.1,0.00539986]
[1738786180522,3.2078,2779.4,2779.1,0.00539986]
[1738786182021,3.2078,2779.7,2779.1,0.00539986]
[1738786183523,3.2078,2779.7,2779.2,4.71403942]
[1738786183722,3.2078,2779.7,2779.1,0.00539986]
[1738786189220,0.00539986,2779.8,2779.1,3.21319986]
[1738786189723,0.00539986,2779.8,2779.2,4.7824824]
[1738786190220,0.00539986,2779.8,2779.3,0.539]
[1738786191030,3.21319986,2779.8,2779.3,0.539]
[1738786192319,3.21319986,2779.8,2779.1,3.21319986]
[1738786195721,3.82685315,2781.0,2779.7,0.5755]
[1738786195927,3.57011,2781.7,2779.5,7.03465315]
[1738786195928,0.5435,2781.3,2780.2,7.03465315]
[1738786196130,4.3243,2781.7,2780.8,3.2078]
[1738786196131,3.2078,2781.7,2780.8,3.2078]
[1738786196335,3.2078,2781.7,2780.5,3.82685315]
[1738786196336,3.2078,2782.3,2781.1,3.2078]
[1738786196524,1.66,2782.8,2781.7,3.2078]
[1738786196730,1.1096,2782.8,2782.0,3.2078]
[1738786197032,3.82685315,2783.2,2782.3,3.2078]
[1738786197332,3.2078,2783.3,2782.6,3.2078]
[1738786197735,3.2078,2783.3,2782.7,1.45243101]
[1738786198133,3.2078,2783.3,2782.8,1.45243101]
[1738786198633,3.2078,2783.3,2782.9,0.55862731]
[1738786199133,3.2078,2783.3,2783.0,0.55862731]
[1738786199334,3.2078,2783.3,2782.7,41.69827058]
[1738786199932,3.2078,2783.3,2782.8,0.56141846]
[1738786200532,3.2078,2783.3,2782.6,3.2078]
[1738786201130,3.2078,2783.3,2782.7,0.56145044]
[1738786201836,3.2078,2783.3,2782.6,3.2078]
[1738786202034,3.2078,2783.3,2782.4,0.56145044]
[1738786202340,3.2078,2782.9,2782.4,0.56145044]
[1738786202729,3.2078,2782.6,2782.0,0.00539986]
[1738786204037,0.5425,2782.8,2782.0,0.00539986]
[1738786204038,3.2078,2782.3,2782.0,0.00539986]
[1738786205026,3.2078,2782.6,2782.0,0.00539986]
[1738786205640,3.2078,2782.3,2782.0,0.00539986]
[1738786206138,3.2078,2782.3,2781.3,0.56165278]
[1738786206139,4.16270725,2782.1,2781.3,0.56165278]
[1738786206343,3.2078,2781.7,2780.8,3.2078]
[1738786206635,1.451,2781.9,2780.8,3.2078]
[1738786207033,1.451,2781.9,2781.1,0.00538996]
[1738786207228,0.00536688,2781.6,2781.1,0.00538996]
[1738786208740,3.2078,2781.4,2781.1,0.00538996]
[1738786210340,3.2078,2781.4,2781.1,40.80538996]
[1738786210833,3.2078,2781.4,2781.1,0.00538996]
[1738786212045,0.00536688,2781.6,2781.2,3.2078]
[1738786212346,0.00536688,2781.6,2781.5,3.2078]
[1738786214440,3.7564,2782.6,2781.5,7.89063008]
[1738786214744,3.7564,2782.6,2781.8,3.2078]
[1738786215039,0.5486,2782.6,2781.8,3.2078]
[1738786215240,0.5486,2782.6,2781.5,3.2078]
[1738786215241,3.2078,2782.0,2781.5,3.2078]
[1738786215445,3.2078,2782.0,2781.2,4.64812071]
[1738786215745,3.2078,2782.0,2781.5,3.2078]
[1738786215939,3.2078,2782.3,2781.2,3.7498]
[1738786216438,0.542,2782.5,2781.2,3.2078]
[1738786216439,3.2078,2782.0,2781.2,3.2078]
[1738786216643,3.2078,2781.7,2781.3,0.56169803]
[1738786216844,3.78285,2782.0,2781.3,0.56169803]
[1738786217145,3.2078,2782.0,2781.3,0.56169803]
[1738786217346,3.78284,2782.0,2781.3,0.56169803]
[1738786217545,3.2078,2782.0,2781.1,0.00538996]
[1738786218835,3.2078,2782.0,2781.2,3.2078]
[1738786219044,3.2078,2782.3,2781.2,7.78652471]
[1738786219742,3.2078,2782.3,2781.5,3.2078]
[1738786219948,3.78277,2782.3,2781.5,3.2078]
[1738786220147,3.2078,2782.0,2781.3,2.01918449]
[1738786220443,3.78283,2782.0,2781.1,0.00538996]
[1738786220649,7.02994379,2782.0,2781.1,0.00538996]
[1738786221849,3.2078,2781.7,2781.1,0.00538996]
[1738786222448,3.2078,2782.3,2781.6,3.2078]
[1738786222946,3.2078,2782.3,2781.7,0.56166655]
[1738786223547,3.2078,2782.3,2781.8,0.56166655]
[1738786223846,3.2078,2782.3,2781.9,0.56166655]
[1738786224748,3.2078,2782.3,2782.0,1.4602348]
[1738786225441,3.2078,2782.3,2782.1,1.4602348]
[1738786225846,3.2078,2782.3,2782.2,1.4602348]
[1738786226440,3.2078,2782.3,2781.7,40.8]
[1738786226851,3.2078,2782.3,2781.8,4.59086022]
[1738786227148,3.2078,2782.6,2781.8,7.79866022]
[1738786227450,3.2078,2782.6,2781.9,2.00143775]
[1738786228151,3.2078,2782.6,2782.0,2.00143775]
[1738786229151,3.82214379,2782.9,2782.2,3.2078]
[1738786229647,3.82214379,2782.9,2782.3,1.46016577]
[1738786230044,0.5405,2783.0,2782.3,1.46016577]
[1738786230248,3.2078,2783.4,2782.3,1.46016577]
[1738786230450,3.82214379,2783.2,2782.5,3.2078]
[1738786230643,3.82214379,2783.2,2782.6,0.00538996]
[1738786230845,3.82214379,2783.2,2782.6,1.46555573]
[1738786231552,3.2078,2783.1,2782.7,1.46016577]
[1738786231748,3.2078,2782.8,2782.7,1.46016577]
[1738786232047,3.78267,2782.8,2782.4,0.54127198]
[1738786232348,7.02994379,2782.5,2781.9,0.54127198]
[1738786232554,0.57503,2782.0,2781.9,0.54127198]
[1738786232749,0.57503,2782.0,2781.5,0.54127198]
[1738786232953,7.02994379,2781.8,2781.5,0.54127198]
[1738786233249,7.02994379,2781.8,2781.5,0.54666194]
[1738786233250,8.47994379,2781.8,2781.5,0.54666194]
[1738786233550,0.5751,2781.7,2781.5,0.00538996]
[1738786234047,5.0,2781.7,2780.5,3.2078]
[1738786234252,3.2078,2781.2,2780.4,40.8]
[1738786234447,3.2078,2781.2,2780.2,3.2078]
[1738786234753,3.2078,2781.2,2780.0,1.1041]
[1738786234754,3.2078,2781.2,2780.5,3.2078]
[1738786235346,3.2078,2781.2,2780.6,0.00538996]
[1738786237150,3.2078,2780.9,2780.6,0.00538996]
[1738786237845,0.5444,2781.0,2780.6,0.00538996]
[1738786238452,3.2078,2781.2,2780.6,0.00538996]
[1738786240951,3.2078,2780.9,2780.6,0.00538996]
[1738786241753,0.5752,2780.8,2780.6,0.00538996]
[1738786243146,3.2078,2780.9,2780.6,0.00538996]
[1738786243457,4.1703112,2781.1,2780.6,0.00538996]
[1738786244754,4.7455412,2781.1,2780.6,0.00538996]
[1738786244950,3.2078,2780.9,2780.6,0.00538996]
[1738786246461,5.913,2783.8,2780.7,3.2078]
[1738786246462,3.2078,2781.5,2780.7,3.2078]
[1738786246664,3.79028996,2782.0,2781.0,3.2078]
[1738786247256,3.79028996,2782.0,2781.0,44.0078]
[1738786247458,3.79028996,2782.0,2781.1,0.56176376]
[1738786247654,0.58248996,2782.0,2781.3,3.2078]
[1738786247860,0.58248996,2782.0,2781.3,44.0078]
[1738786247861,0.00538996,2782.0,2781.3,44.0078]
[1738786248061,0.00538996,2782.0,2781.4,4.68150903]
[1738786248262,0.00538996,2782.0,2781.4,5.24327279]
[1738786248661,0.00538996,2782.0,2781.5,0.56176376]
[1738786248868,0.00538996,2782.0,2781.6,0.5826]
[1738786249362,0.00538996,2782.0,2781.6,3.7904]
[1738786250362,0.00538996,2782.0,2781.6,0.5826]
[1738786250571,0.00538996,2782.0,2781.3,3.2078]
[1738786251277,3.21318996,2782.0,2781.3,3.2078]
[1738786252474,3.21318996,2782.0,2781.1,0.5826]
[1738786252475,0.00538996,2782.0,2781.6,3.2078]
[1738786253074,0.5771,2782.6,2781.9,3.2078]
[1738786253270,3.2078,2782.9,2781.9,3.2078]
[1738786253577,3.2078,2782.9,2782.0,0.56158913]
[1738786254485,3.2078,2782.9,2782.2,0.00538996]
[1738786254486,0.00538996,2782.7,2782.2,0.00538996]
[1738786255578,3.2078,2782.5,2782.2,0.00538996]
[1738786256175,0.57497,2782.3,2782.2,0.00538996]
[1738786256680,3.82136694,2782.3,2782.2,0.00538996]
[1738786257178,4.38566694,2782.3,2782.2,0.00538996]
[1738786260281,4.96063694,2782.3,2782.2,0.00538996]
[1738786260482,9.96063694,2782.3,2782.2,0.00538996]
[1738786261082,9.38566694,2782.3,2781.1,1.46404831]
[1738786261280,3.82136694,2781.6,2781.3,0.56176772]
[1738786261479,4.6578,2781.7,2781.3,0.56176772]
[1738786261875,4.6578,2781.7,2781.1,0.5653]
[1738786262182,0.3223,2782.2,2781.1,0.5653]
[1738786262183,3.2078,2782.1,2781.3,3.2078]
[1738786262483,16.609,2783.5,2781.3,3.2078]
[1738786262484,3.2078,2782.4,2781.9,3.2078]
[1738786262685,3.2078,2782.4,2782.0,0.5812]
[1738786262886,3.2078,2782.4,2782.0,1.69778964]
[1738786263073,3.82136694,2783.1,2782.0,1.69778964]
[1738786263074,7.02916694,2783.1,2782.3,3.2078]
[1738786263277,7.02916694,2783.1,2782.0,2.27280964]
[1738786263278,3.2078,2783.1,2782.6,3.2078]
[1738786263486,0.3223,2783.6,2782.9,3.2078]
[1738786263487,3.2078,2783.6,2782.9,3.2078]
[1738786263880,3.82136694,2783.4,2782.7,0.5548]
[1738786264280,3.82136694,2783.4,2782.8,0.56178964]
[1738786264787,0.00538996,2783.3,2782.8,0.00538996]
[1738786265882,4.16904158,2783.3,2782.8,0.00538996]
[1738786266185,7.37684158,2783.3,2782.8,0.00538996]
[1738786267088,3.2078,2783.0,2782.8,0.00538996]
[1738786267487,4.16365162,2782.9,2782.8,0.00538996]
[1738786267988,9.16365162,2782.9,2782.8,0.00538996]
[1738786269483,4.16365162,2782.9,2782.8,0.00538996]
[1738786272182,9.73850162,2782.9,2782.8,0.00538996]
[1738786274289,4.73850162,2782.9,2782.8,0.00538996]
[1738786274488,12.73350162,2782.9,2782.8,0.00538996]
[1738786274688,0.57501,2782.2,2782.1,0.56162563]
[1738786274892,1.449,2782.2,2781.1,0.5584]
[1738786275085,3.2078,2781.8,2781.1,0.5584]
[1738786275488,3.7631,2782.1,2781.3,3.2078]
[1738786275688,0.00538996,2781.7,2781.3,3.2078]
[1738786275889,0.00538996,2781.7,2781.4,0.5603]
[1738786276391,3.2078,2781.5,2781.2,0.00538996]
[1738786276591,0.57518,2781.3,2781.2,0.00538996]
[1738786276794,2.02418,2781.3,2781.2,0.00538996]
[1738786277099,1.449,2781.3,2781.2,0.00538996]
[1738786277696,3.2078,2781.5,2781.2,0.00538996]
[1738786278897,0.57518,2781.3,2781.2,0.00538996]
[1738786280094,5.57518,2781.3,2781.2,0.00538996]
[1738786280289,5.57518,2781.3,2779.3,0.57558]
[1738786280290,5.0,2781.3,2779.3,3.2078]
[1738786280490,3.2078,2779.7,2779.2,1.1587]
[1738786280691,4.6568,2779.7,2779.2,0.5792]
[1738786280993,3.2078,2779.3,2778.5,3.2078]
[1738786281599,0.00538996,2779.2,2778.6,0.00538996]
[1738786284499,0.00538996,2779.2,2778.9,3.2078]
[1738786284804,0.00538996,2779.2,2778.6,3.21318996]
[1738786285701,0.00538996,2779.2,2778.9,3.2078]
[1738786286003,0.00538996,2779.2,2778.6,3.21318996]
[1738786287008,0.00538996,2779.2,2778.7,40.8]
[1738786287302,0.00538996,2779.2,2778.9,3.2078]
[1738786288309,3.21318996,2779.2,2778.6,3.21318996]
[1738786288503,3.8285577,2779.0,2778.6,0.00538996]
[1738786289002,3.78348,2778.9,2778.6,0.00538996]
[1738786289299,3.2078,2778.9,2778.6,0.00538996]
[1738786292906,3.2078,2778.8,2778.6,0.00538996]
[1738786293603,3.2078,2778.8,2777.9,0.5278]
[1738786293804,3.2078,2778.4,2777.9,3.7356]
[1738786294305,3.2078,2778.4,2777.9,3.2078]
[1738786294502,3.2078,2778.4,2777.5,4.2786]
[1738786294807,3.2078,2778.4,2777.9,0.00538996]
[1738786295003,0.57581,2778.3,2777.9,0.00538996]
[1738786295212,3.78359,2778.4,2777.9,0.00538996]
[1738786295404,0.5758,2778.3,2777.9,0.00538996]
[1738786295705,4.17704005,2778.1,2777.9,0.00538996]
[1738786295910,0.57586,2778.0,2777.9,0.00538996]
[1738786296312,6.77866,2778.0,2777.9,0.00538996]
[1738786296506,11.77866,2778.0,2777.9,0.00538996]
[1738786296811,4.17704005,2777.9,2777.3,3.2078]
[1738786297604,4.445,2778.2,2777.3,3.2078]
[1738786297812,0.00540015,2777.9,2777.4,0.558]
[1738786298011,0.00540015,2777.9,2777.5,0.5796]
[1738786298212,0.00540015,2777.9,2777.6,3.2078]
[1738786299513,0.00540015,2777.9,2777.5,1.1636]
[1738786300309,0.00540015,2777.9,2777.6,3.2078]
[1738786304105,0.00540015,2777.9,2777.5,1.1636]
[1738786306905,0.00540015,2777.9,2777.6,0.5598959]
[1738786307516,0.00540015,2777.9,2777.7,0.5598959]
[1738786308618,0.00540015,2777.9,2777.8,0.5598959]
[1738786309717,0.00540015,2777.9,2777.8,1.45906012]
[1738786318816,3.8375125,2777.9,2777.8,1.45906012]
[1738786319318,0.00540015,2777.9,2777.8,1.45906012]
[1738786320911,0.00540015,2777.9,2777.8,0.5598959]
[1738786327826,0.00540015,2777.9,2777.8,3.7676959]
[1738786328025,0.00540015,2777.9,2777.8,0.5598959]
[1738786330534,0.58128015,2777.9,2777.8,0.5598959]
[1738786331638,0.00540015,2777.9,2777.8,0.5598959]
[1738786334637,3.06443431,2777.9,2777.4,4.3547]
[1738786334837,3.2078,2777.8,2777.4,4.3547]
[1738786335140,3.06443431,2777.9,2777.5,0.55858093]
[1738786335339,3.2078,2777.8,2777.5,0.55858093]
[1738786335646,3.05903416,2777.6,2777.3,0.00540015]
[1738786336840,3.2078,2777.8,2777.4,0.55844506]
[1738786337037,3.06443431,2777.9,2777.4,1.13234506]
[1738786337448,3.06443431,2777.9,2777.5,0.55844506]
[1738786338050,3.05903416,2777.6,2777.4,0.5739]
[1738786338441,3.05903416,2777.6,2777.5,0.55830499]
[1738786338948,3.21320015,2777.9,2777.5,0.55830499]
[1738786339144,3.21320015,2777.9,2777.6,0.5474]
[1738786339441,3.21320015,2777.9,2777.7,0.55830499]
[1738786339646,0.00540015,2777.9,2777.7,0.55830499]
[1738786340243,0.00540015,2777.9,2777.8,0.55830499]
[1738786340949,3.06443431,2777.9,2777.8,0.55830499]
[1738786342347,3.64031431,2777.9,2777.8,0.55830499]
[1738786342541,3.06443431,2777.9,2777.8,0.55830499]
[1738786342747,11.84811431,2777.9,2777.8,0.55830499]
[1738786342943,0.5759,2777.8,2777.3,0.00540015]
[1738786343152,3.05903416,2777.5,2777.3,0.00540015]
[1738786343351,3.05903416,2777.5,2777.4,0.55816439]
[1738786344247,3.05903416,2777.5,2777.3,0.00540015]
[1738786346444,0.57599,2777.4,2777.3,0.00540015]
[1738786346645,5.0,2777.4,2776.5,0.5495]
[1738786346950,3.05903416,2776.7,2776.5,0.5495]
[1738786347152,3.05903416,2776.7,2776.6,0.55835228]
[1738786347740,6.26683416,2777.0,2776.6,0.55835228]
[1738786348144,6.26683416,2777.0,2776.7,0.55835228]
[1738786348944,6.26683416,2777.0,2776.8,0.55835228]
[1738786349253,6.26683416,2777.3,2776.8,0.55835228]
[1738786349451,6.26683416,2777.3,2776.9,0.55835228]
[1738786350353,6.26683416,2777.3,2777.0,0.55835228]
[1738786350747,6.26683416,2777.3,2776.5,4.3222]
[1738786351144,3.05903416,2777.3,2776.8,3.2078]
[1738786352452,3.05903416,2777.3,2776.9,0.55760444]
[1738786352952,3.05903416,2777.3,2777.0,0.5675]
[1738786353155,3.05903416,2777.3,2777.0,1.12510444]
[1738786353550,3.63505416,2777.3,2776.5,1.1144]
[1738786353748,3.05903416,2776.9,2776.5,1.6819]
[1738786354350,3.05903416,2776.9,2776.6,0.55838383]
[1738786354853,3.05903416,2777.2,2776.6,0.55838383]
[1738786355054,3.05903416,2777.2,2776.6,3.76618383]
[1738786355251,3.05903416,2777.2,2776.7,0.55838383]
[1738786355651,3.05903416,2777.2,2776.8,0.55838383]
[1738786356252,3.05903416,2777.2,2776.9,0.5580445]
[1738786356757,3.05903416,2777.2,2776.6,3.2078]
[1738786357158,3.05903416,2777.2,2776.7,0.55814663]
[1738786358260,3.05903416,2777.2,2776.8,0.55814663]
[1738786358954,3.05903416,2776.9,2776.5,1.117]
[1738786359161,3.05903416,2776.9,2776.4,0.0036171]
[1738786359162,3.05903416,2776.6,2776.4,0.0036171]
[1738786359552,3.05903416,2776.6,2776.5,0.55805379]
[1738786360052,3.05903416,2776.6,2776.4,0.0036171]
[1738786360053,0.57617,2776.5,2776.4,0.0036171]
[1738786360255,0.57632,2775.8,2775.3,4.3434]
[1738786360450,3.05903416,2775.4,2775.0,3.2078]
[1738786360857,3.05903416,2775.1,2775.0,3.2078]
[1738786361365,3.05903416,2775.1,2774.7,1.1356]
[1738786361561,3.05903416,2774.8,2774.7,1.1356]
[1738786361958,3.05903416,2774.8,2774.7,0.55859113]
[1738786362160,3.05903416,2775.1,2774.7,0.55859113]
[1738786362462,3.05903416,2775.1,2774.6,3.2078]
[1738786362661,3.84093882,2775.0,2774.6,3.2078]
[1738786363565,3.84633897,2775.3,2774.9,3.2078]
[1738786366359,3.2078,2775.0,2773.2,4.20173882]
[1738786366659,3.84093882,2774.0,2773.4,3.2078]
[1738786366865,3.84093882,2774.4,2773.7,3.2078]
[1738786367361,0.00540015,2774.3,2773.7,3.2078]
[1738786369062,0.00540015,2774.3,2774.1,3.2078]
[1738786369264,0.00540015,2774.3,2774.2,1.096]
[1738786370567,0.00540015,2774.3,2774.2,1.6627]
[1738786371067,7.04873882,2774.8,2774.2,1.6627]
[1738786372064,7.04873882,2774.8,2774.2,1.66810015]
[1738786372065,7.05413897,2774.8,2774.2,1.66810015]
[1738786374360,0.00540015,2774.8,2774.4,3.2078]
[1738786375570,7.04873882,2775.4,2774.7,3.2078]
[1738786376474,0.3412,2775.9,2774.7,3.2078]
[1738786376475,3.84093882,2775.7,2774.8,4.71351011]
[1738786376766,3.84093882,2775.4,2774.9,1.122]
[1738786376971,3.84093882,2775.1,2774.9,1.11547403]
[1738786377371,3.84093882,2775.1,2774.9,0.5605]
[1738786377972,3.84093882,2775.1,2774.7,3.2078]
[1738786378172,3.84093882,2774.8,2774.7,3.2078]
[1738786382167,3.84093882,2775.1,2774.7,3.2078]
[1738786382367,3.84093882,2775.1,2774.7,3.76377151]
[1738786382677,3.06462986,2775.0,2774.7,3.76377151]
[1738786383175,3.06462986,2775.3,2774.8,0.55597151]
[1738786383878,3.06462986,2775.3,2775.0,3.2078]
[1738786384076,3.06462986,2775.3,2775.1,0.5378]
[1738786384276,3.06462986,2775.3,2775.2,0.5298]
[1738786384577,3.06462986,2775.3,2775.2,1.08577151]
[1738786385473,0.00540015,2775.5,2775.2,1.08577151]
[1738786385676,0.00540015,2775.5,2775.3,3.2078]
[1738786386080,0.00540015,2775.5,2775.4,0.55597151]
[1738786387976,3.64641001,2775.5,2775.4,0.55597151]
[1738786388177,3.64641001,2775.5,2774.4,1.1477]
[1738786388178,0.5765,2775.0,2774.4,1.1477]
[1738786388377,3.06462986,2774.5,2773.8,3.5001099]
[1738786388581,6.27242986,2774.5,2773.9,0.5699]
[1738786389282,6.27242986,2774.5,2773.5,0.5715]
[1738786389283,3.06462986,2774.3,2773.5,0.5715]
[1738786389483,3.06462986,2773.6,2773.3,3.2078]
[1738786390783,3.84495925,2773.5,2773.3,3.2078]
[1738786391889,0.00540015,2773.7,2773.3,3.2078]
[1738786392287,0.00540015,2773.7,2773.3,3.7581]
[1738786392979,0.00540015,2773.7,2773.4,0.5838]
[1738786395789,0.00540015,2773.7,2773.5,40.8]
[1738786396393,0.00540015,2773.7,2773.6,3.2078]
[1738786396587,3.84495925,2774.4,2773.6,3.2078]
[1738786396790,3.84495925,2774.4,2774.1,3.2078]
[1738786397286,7.05275925,2774.4,2773.7,3.2078]
[1738786397486,3.84495925,2774.0,2773.4,3.7916]
[1738786397689,3.84495925,2773.7,2773.4,3.7916]
[1738786399095,3.84495925,2774.0,2773.4,3.7916]
[1738786399289,3.8503594,2774.3,2773.4,3.7916]
[1738786399488,3.84495925,2774.0,2773.4,3.7916]
[1738786400291,3.84495925,2774.0,2773.5,0.55534217]
[1738786400990,3.84495925,2774.0,2773.6,0.55534217]
[1738786401386,3.84495925,2774.0,2773.4,3.7916]
[1738786401792,3.8503594,2774.3,2773.5,0.55520887]
[1738786402093,3.84495925,2774.0,2773.7,3.2078]
[1738786403705,3.84495925,2774.0,2773.5,0.5543]
[1738786404197,3.84495925,2774.0,2773.6,0.55506124]
[1738786404997,3.84495925,2774.0,2773.7,0.55506124]
[1738786405592,0.00540015,2774.3,2773.5,0.5543]
[1738786406100,0.00540015,2774.3,2773.6,0.55472665]
[1738786406599,0.00540015,2774.3,2773.7,0.55472665]
[1738786407300,0.00540015,2774.3,2773.6,3.2078]
[1738786407301,0.00540015,2774.3,2773.8,0.55472665]
[1738786407994,0.00540015,2774.3,2773.9,0.55472665]
[1738786408494,0.00540015,2774.3,2773.6,3.2078]
[1738786409202,0.00540015,2774.3,2773.7,0.55473058]
[1738786409596,0.00540015,2774.3,2773.6,3.2078]
[1738786409597,0.00540015,2774.3,2773.8,0.55473058]
[1738786409998,0.00540015,2774.3,2773.9,0.5841]
[1738786410501,0.00540015,2774.3,2774.0,0.55473058]
[1738786410703,0.00540015,2774.3,2774.1,0.5841]
[1738786411903,0.00540015,2774.3,2774.2,0.55475579]
[1738786413800,3.2078,2774.7,2774.2,3.76255579]
[1738786414005,3.2078,2774.7,2774.3,0.5644]